fUSD/lending_fUSD_20250209
["ID","MTS","AMOUNT","RATE_DAILY","PERIOD"]
[352424897,1739095850392,-500.0,0.00010635,2]
[352424898,1739095850401,-599.66,0.00010635,2]
[352424899,1739095850411,-533.15,0.00010635,2]
[352424900,1739095850420,-500.0,0.00010635,2]
[352424901,1739095850430,-500.0,0.00010635,2]
[352424902,1739095850439,-500.0,0.00010635,2]
[352424903,1739095850448,-714.67,0.00010635,2]
[352424904,1739095850457,-502.50354218,0.00010635,2]
[352424905,1739095850467,-500.0,0.00010635,2]
[352424906,1739095850476,-648.75,0.00010635,2]
[352424907,1739095850486,-510.82,0.00010635,2]
[352424908,1739095850495,-500.0,0.00010635,2]
[352424909,1739095850505,-500.0,0.00010635,2]
[352424910,1739095850514,-500.0,0.00010635,2]
[352424911,1739095850523,-503.48444046,0.00010635,2]
[352424912,1739095850533,-500.0,0.00010635,2]
[352424913,1739095850542,-571.70409109,0.00010635,2]
[352424914,1739095850552,-575.28,0.00010635,2]
[352424915,1739095850562,-500.0,0.00010635,2]
[352424916,1739095850571,-500.0,0.00010635,2]
[352424917,1739095850580,-500.0,0.00010635,2]
[352424918,1739095850589,-594.56,0.00010635,2]
[352424919,1739095850599,-1213.56,0.00010635,2]
[352424920,1739095850609,-500.0,0.00010635,2]
[352424921,1739095850619,-733.97644,0.00010635,2]
[352424922,1739095850630,-588.03,0.00010635,2]
[352424923,1739095850640,-529.87,0.00010635,2]
[352424924,1739095850650,-957.726417,0.00010635,2]
[352424925,1739095850660,-781.27,0.00010635,2]
[352424926,1739095850670,-970.52,0.00010635,2]
[352424927,1739095850680,-537.11,0.00010635,2]
[352424928,1739095850689,-500.0,0.00010635,2]
[352424929,1739095850698,-2972.23,0.00010635,2]
[352424930,1739095850708,-666.32,0.00010635,2]
[352424931,1739095850718,-1280.02,0.00010635,2]
[352424932,1739095850728,-1201.1,0.00010635,2]
[352424933,1739095850737,-500.0,0.00010635,2]
[352424934,1739095850752,-1268.87,0.00010635,2]
[352424935,1739095850761,-632.14,0.00010635,2]
[352424936,1739095850771,-248.39887584,0.00010635,2]
[352424937,1739095850780,-944.53,0.00010635,2]
[352424938,1739095850789,-702.27,0.00010635,2]
[352424939,1739095850799,-456.96775202,0.00010635,2]
[352424940,1739095850813,-291.6,0.00010635,2]
[352424941,1739095850824,-439.44224798,0.00010635,2]
[352424942,1739095850834,-500.0,0.00010635,2]
[352424943,1739095850843,-2680.97,0.00010635,2]
[352424944,1739095850853,-801.63,0.00010635,2]
[352424945,1739095850862,-500.0,0.00010635,2]
[352424946,1739095850872,-500.0,0.00010635,2]
[352424947,1739095850882,-1475.77,0.00010635,2]
[352424948,1739095850891,-500.0,0.00010635,2]
[352424949,1739095850901,-679.18,0.00010635,2]
[352424950,1739095850910,-500.0,0.00010635,2]
[352424951,1739095850920,-500.0,0.00010635,2]
[352424952,1739095850929,-679.7,0.00010635,2]
[352424953,1739095850940,-500.0,0.00010635,2]
[352424954,1739095850953,-500.0,0.00010635,2]
[352424955,1739095850963,-770.02,0.00010635,2]
[352424956,1739095850972,-500.0,0.00010635,2]
[352424957,1739095850981,-500.0,0.00010635,2]
[352424958,1739095850992,-500.0,0.00010635,2]
[352424959,1739095851002,-160.69,0.00010636,2]
[352424960,1739095851011,-500.0,0.00010636,2]
[352424961,1739095851021,-500.0,0.00010636,2]
[352424962,1739095851033,-500.0,0.00010636,2]
[352424963,1739095851044,-500.0,0.00010636,2]
[352424964,1739095851053,-168.86637488,0.00010636,2]
[352424965,1739095851063,-503.52896214,0.00010636,2]
[352424966,1739095851073,-500.0,0.00010636,2]
[352424967,1739095851083,-500.0,0.00010636,2]
[352424968,1739095851092,-500.0,0.00010636,2]
[352424969,1739095851102,-500.0,0.00010636,2]
[352424970,1739095851111,-500.0,0.00010636,2]
[352424971,1739095851121,-500.0,0.00010636,2]
[352424972,1739095851130,-500.0,0.00010636,2]
[352424973,1739095851139,-500.0,0.00010636,2]
[352424974,1739095851149,-500.0,0.00010636,2]
[352424975,1739095851158,-500.0,0.00010636,2]
[352424976,1739095851168,-500.0,0.00010636,2]
[352424977,1739095851177,-500.0,0.00010636,2]
[352424978,1739095851187,-500.0,0.00010636,2]
[352424979,1739095851196,-500.0,0.00010636,2]
[352424980,1739095851208,-558.62240605,0.00010636,2]
[352424981,1739095851218,-500.0,0.00010636,2]
[352424982,1739095851227,-506.8688004,0.00010636,2]
[352424983,1739095851237,-500.0,0.00010636,2]
[352424984,1739095851248,-551.74161895,0.00010636,2]
[352424985,1739095851257,-500.0,0.00010636,2]
[352424986,1739095851266,-504.69633815,0.00010636,2]
[352424987,1739095851276,-500.0,0.00010636,2]
[352424988,1739095851285,-1239.95,0.00010636,2]
[352424989,1739095851297,-500.0,0.00010636,2]
[352424990,1739095851309,-500.0,0.00010636,2]
[352424991,1739095851318,-500.0,0.00010636,2]
[352424992,1739095851329,-500.0,0.00010636,2]
[352424993,1739095851339,-555.71,0.00010636,2]
[352424994,1739095851349,-500.0,0.00010636,2]
[352424995,1739095851358,-255.45418726,0.00010636,2]
[352424996,1739095851367,-500.0,0.00010636,2]
[352424997,1739095851377,-643.3405738,0.00010636,2]
[352424998,1739095851386,-500.0,0.00010636,2]
[352424999,1739095851395,-500.0,0.00010636,2]
[352425000,1739095851405,-500.0,0.00010636,2]
[352425001,1739095851414,-500.0,0.00010636,2]
[352425002,1739095851425,-500.0,0.00010636,2]
[352425003,1739095851434,-500.0,0.00010636,2]
[352425004,1739095851443,-500.0,0.00010636,2]
[352425005,1739095851452,-500.0,0.00010636,2]
[352425006,1739095851461,-504.33105609,0.00010636,2]
[352425007,1739095851470,-562.42243468,0.00010636,2]
[352425008,1739095851479,-500.0,0.00010636,2]
[352425009,1739095851488,-500.0,0.00010636,2]
[352425010,1739095851498,-501.93307458,0.00010636,2]
[352425011,1739095851507,-500.0,0.00010636,2]
[352425012,1739095851563,-500.0,0.00010636,2]
[352425013,1739095851571,-504.344437,0.00010636,2]
[352425014,1739095851581,-203.92017568,0.00010636,2]
[352425015,1739095851590,-500.0,0.00010636,2]
[352425016,1739095851599,-500.0,0.00010636,2]
[352425017,1739095851608,-502.69904213,0.00010636,2]
[352425018,1739095851617,-500.0,0.00010636,2]
[352425019,1739095851626,-500.0,0.00010636,2]
[352425020,1739095851635,-500.0,0.00010636,2]
[352425021,1739095851644,-500.0,0.00010636,2]
[352425022,1739095851653,-587.11,0.00010636,2]
[352425023,1739095851662,-500.0,0.00010636,2]
[352425024,1739095851671,-500.70398151,0.00010636,2]
[352425025,1739095851680,-500.0,0.00010636,2]
[352425026,1739095851689,-417.32985462,0.00010636,2]
[352425027,1739095851698,-500.0,0.00010636,2]
[352425028,1739095851708,-500.0,0.00010636,2]
[352425029,1739095851718,-500.0,0.00010636,2]
[352425030,1739095851727,-500.0,0.00010636,2]
[352425031,1739095851738,-501.87743306,0.00010636,2]
[352425032,1739095851747,-500.0,0.00010636,2]
[352425033,1739095851757,-501.42318138,0.00010636,2]
[352425034,1739095851767,-505.25345185,0.00010636,2]
[352425035,1739095851778,-500.0,0.00010636,2]
[352425036,1739095851787,-546.55,0.00010636,2]
[352425037,1739095851795,-500.0,0.00010636,2]
[352425038,1739095851804,-500.0,0.00010636,2]
[352425039,1739095851813,-500.0,0.00010636,2]
[352425040,1739095851822,-500.0,0.00010636,2]
[352425041,1739095851831,-500.0,0.00010636,2]
[352425042,1739095851840,-500.0,0.00010636,2]
[352425043,1739095851849,-550.19,0.00010636,2]
[352425044,1739095851858,-612.35,0.00010636,2]
[352425045,1739095851867,-830.04,0.00010636,2]
[352425046,1739095851876,-1383.45,0.00010636,2]
[352425047,1739095851886,-1630.8,0.00010636,2]
[352425048,1739095851895,-500.0,0.00010636,2]
[352425049,1739095851904,-1585.45,0.00010636,2]
[352425050,1739095851914,-591.04,0.00010636,2]
[352425051,1739095851923,-2273.72,0.00010636,2]
[352425052,1739095851933,-500.0,0.00010636,2]
[352425053,1739095851942,-819.17,0.00010636,2]
[352425054,1739095851956,-1111.04,0.00010636,2]
[352425055,1739095851966,-1302.26,0.00010636,2]
[352425056,1739095851976,-1487.54,0.00010636,2]
[352425057,1739095851986,-500.0,0.00010636,2]
[352425058,1739095851997,-1111.22,0.00010636,2]
[352425059,1739095852007,-1031.34,0.00010636,2]
[352425060,1739095852018,-500.0,0.00010636,2]
[352425061,1739095852029,-155.9957917,0.00010636,2]
[352425062,1739095852039,-500.0,0.00010636,2]
[352425063,1739095852051,-967.2,0.00010636,2]
[352425064,1739095852060,-747.38,0.00010636,2]
[352425065,1739095852069,-500.0,0.00010636,2]
[352425066,1739095852079,-1032.96,0.00010636,2]
[352425067,1739095852088,-829.73,0.00010636,2]
[352425068,1739095852097,-669.95,0.00010636,2]
[352425069,1739095852107,-500.0,0.00010636,2]
[352425070,1739095852117,-500.0,0.00010636,2]
[352425071,1739095852127,-1044.85,0.00010636,2]
[352425072,1739095852136,-1479.18,0.00010636,2]
[352425073,1739095852145,-698.47,0.00010636,2]
[352425074,1739095852155,-1465.35,0.00010636,2]
[352425075,1739095852163,-1918.5,0.00010636,2]
[352425076,1739095852174,-500.0,0.00010636,2]
[352425077,1739095852183,-1080.16,0.00010636,2]
[352425078,1739095852193,-1493.17,0.00010636,2]
[352425079,1739095852202,-500.0,0.00010636,2]
[352425080,1739095852212,-500.0,0.00010636,2]
[352425081,1739095852221,-1116.87,0.00010636,2]
[352425082,1739095852231,-1703.91,0.00010636,2]
[352425083,1739095852240,-1227.31,0.00010636,2]
[352425084,1739095852250,-955.79,0.00010636,2]
[352425085,1739095852259,-509.24,0.00010636,2]
[352425086,1739095852270,-1379.38,0.00010636,2]
[352425087,1739095852279,-500.0,0.00010636,2]
[352425088,1739095852287,-3396.14,0.00010636,2]
[352425089,1739095852296,-410.91765074,0.00010636,2]
[352425090,1739095852305,-1580.08,0.00010636,2]
[352425091,1739095852315,-1184.37,0.00010636,2]
[352425092,1739095852324,-1373.36,0.00010636,2]
[352425093,1739095852334,-783.87,0.00010636,2]
[352425094,1739095852344,-1000.0,0.00010636,2]
[352425095,1739095852353,-1456.24,0.00010636,2]
[352425096,1739095852362,-756.71,0.00010636,2]
[352425097,1739095852371,-1314.38,0.00010636,2]
[352425098,1739095852380,-500.0,0.00010636,2]
[352425099,1739095852389,-500.0,0.00010636,2]
[352425100,1739095852399,-912.33,0.00010636,2]
[352425101,1739095852409,-500.0,0.00010636,2]
[352425102,1739095852418,-743.47,0.00010636,2]
[352425103,1739095852428,-557.2,0.00010636,2]
[352425104,1739095852439,-1107.21,0.00010636,2]
[352425105,1739095852448,-1216.55,0.00010636,2]
[352425106,1739095852457,-1685.79,0.00010636,2]
[352425107,1739095852466,-1209.48,0.00010636,2]
[352425108,1739095852476,-500.0,0.00010636,2]
[352425109,1739095852485,-500.0,0.00010636,2]
[352425110,1739095852494,-500.0,0.00010636,2]
[352425111,1739095852503,-574.57,0.00010636,2]
[352425112,1739095852512,-500.0,0.00010636,2]
[352425113,1739095852521,-150.0,0.00010636,2]
[352425114,1739095852530,-500.0,0.00010636,2]
[352425115,1739095852540,-500.0,0.00010636,2]
[352425116,1739095852549,-1320.75,0.00010636,2]
[352425117,1739095852558,-834.03,0.00010636,2]
[352425118,1739095852567,-500.0,0.00010636,2]
[352425119,1739095852576,-912.85,0.00010636,2]
[352425120,1739095852585,-500.0,0.00010636,2]
[352425121,1739095852594,-1117.53,0.00010636,2]
[352425122,1739095852603,-500.0,0.00010636,2]
[352425123,1739095852612,-500.0,0.00010636,2]
[352425124,1739095852621,-150.0,0.0001065,2]
[352425125,1739095852630,-150.0,0.0001065,2]
[352425126,1739095852639,-270.19,0.00010666,2]
[352425127,1739095852648,-508.77,0.00010668,2]
[352425128,1739095852658,-782.96,0.00010668,2]
[352425129,1739095852667,-500.0,0.00010669,2]
[352425130,1739095852676,-500.0,0.00010669,2]
[352425131,1739095852686,-500.0,0.00010669,2]
[352425132,1739095852695,-500.0,0.00010669,2]
[352425133,1739095852703,-500.0,0.00010669,2]
[352425134,1739095852712,-500.0,0.00010669,2]
[352425135,1739095852721,-631.82,0.00010669,2]
[352425136,1739095852731,-500.0,0.00010669,2]
[352425137,1739095852740,-500.0,0.00010669,2]
[352425138,1739095852749,-500.0,0.00010669,2]
[352425139,1739095852758,-1087.04,0.00010669,2]
[352425140,1739095852767,-500.0,0.00010669,2]
[352425141,1739095852776,-500.0,0.00010669,2]
[352425142,1739095852784,-324.97,0.00010669,2]
[352425143,1739095852793,-500.0,0.00010669,2]
[352425144,1739095852802,-517.6,0.00010669,2]
[352425145,1739095852811,-500.0,0.00010669,2]
[352425146,1739095852820,-500.0,0.00010669,2]
[352425147,1739095852829,-500.0,0.00010669,2]
[352425148,1739095852838,-500.0,0.00010669,2]
[352425149,1739095852847,-500.0,0.00010669,2]
[352425150,1739095852856,-685.98,0.00010669,2]
[352425151,1739095852864,-500.0,0.00010669,2]
[352425152,1739095852874,-500.0,0.00010669,2]
[352425153,1739095852883,-500.0,0.00010669,2]
[352425154,1739095852892,-500.0,0.00010669,2]
[352425155,1739095852901,-500.0,0.00010669,2]
[352425156,1739095852910,-500.0,0.00010669,2]
[352425157,1739095852918,-500.0,0.00010669,2]
[352425158,1739095852928,-614.19,0.00010669,2]
[352425159,1739095852937,-500.0,0.00010669,2]
[352425160,1739095852951,-305.21693591,0.00010669,2]
[352425161,1739095852961,-500.0,0.00010669,2]
[352425162,1739095852970,-500.0,0.00010669,2]
[352425163,1739095852980,-500.0,0.00010669,2]
[352425164,1739095852990,-500.0,0.00010669,2]
[352425165,1739095852999,-500.0,0.00010669,2]
[352425166,1739095853008,-576.84,0.00010669,2]
[352425167,1739095853017,-500.0,0.00010669,2]
[352425168,1739095853028,-500.0,0.00010669,2]
[352425169,1739095853037,-500.0,0.00010669,2]
[352425170,1739095853046,-500.0,0.00010669,2]
[352425171,1739095853055,-500.0,0.00010669,2]
[352425172,1739095853063,-500.0,0.00010669,2]
[352425173,1739095853072,-500.0,0.00010669,2]
[352425174,1739095853081,-665.4,0.00010669,2]
[352425175,1739095853090,-500.0,0.00010669,2]
[352425176,1739095853099,-500.0,0.00010669,2]
[352425177,1739095853108,-500.0,0.00010669,2]
[352425178,1739095853117,-500.0,0.00010669,2]
[352425179,1739095853127,-650.78,0.00010669,2]
[352425180,1739095853136,-500.0,0.00010669,2]
[352425181,1739095853144,-692.49,0.00010669,2]
[352425182,1739095853154,-813.54719998,0.00010669,2]
[352425183,1739095853442,-218.63280002,0.00010669,2]
[352425184,1739095853453,-500.0,0.00010669,2]
[352425185,1739095853462,-500.0,0.00010669,2]
[352425186,1739095853471,-500.0,0.00010669,2]
[352425187,1739095853479,-500.0,0.00010669,2]
[352425188,1739095853489,-500.0,0.00010669,2]
[352425189,1739095853498,-500.0,0.00010669,2]
[352425190,1739095853507,-500.0,0.00010669,2]
[352425191,1739095853516,-577.91,0.00010669,2]
[352425192,1739095853525,-500.0,0.00010669,2]
[352425193,1739095853535,-500.0,0.00010669,2]
[352425194,1739095853544,-583.79,0.00010669,2]
[352425195,1739095853553,-500.0,0.00010669,2]
[352425196,1739095853562,-711.52,0.00010669,2]
[352425197,1739095853571,-4.01109998,0.00010669,2]
[352425198,1739095853583,-825.65890002,0.00010669,2]
[352425199,1739095853592,-500.0,0.00010669,2]
[352425200,1739095853601,-500.0,0.00010669,2]
[352425201,1739095853611,-500.0,0.00010669,2]
[352425202,1739095853620,-755.01,0.00010669,2]
[352425203,1739095853629,-577.83,0.00010669,2]
[352425204,1739095853640,-136.90680895,0.00010669,2]
[352425205,1739095853888,-622.35319105,0.00010669,2]
[352425206,1739095853898,-564.65007249,0.00010669,2]
[352425207,1739095853908,-2588.75,0.00010674,2]
[352425208,1739095853917,-200.0,0.00010674,2]
[352425209,1739095853928,-610.35,0.00010674,2]
[352425210,1739095853938,-500.0,0.00010674,2]
[352425211,1739095853951,-704.18,0.00010674,2]
[352425212,1739095853961,-510.38415934,0.00010674,2]
[352425213,1739095853970,-500.0,0.00010674,2]
[352425214,1739095853979,-500.0,0.00010674,2]
[352425215,1739095853990,-641.82,0.00010674,2]
[352425216,1739095854000,-500.0,0.00010674,2]
[352425217,1739095854009,-756.47,0.00010674,2]
[352425218,1739095854018,-500.0,0.00010674,2]
[352425219,1739095854028,-4000.0,0.00010674,2]
[352425220,1739095854038,-2820.0,0.0001068,2]
[352425221,1739095854047,-150.0,0.00010693,2]
[352425222,1739095854056,-782.96,0.00010699,2]
[352425223,1739095854065,-150238.12652238,0.000107,2]
[352425224,1739095854074,-151.0,0.000107,2]
[352425225,1739095854084,-150.0,0.000107,2]
[352425226,1739095854094,-5555.0,0.000107,5]
[352425227,1739095854103,-150.0,0.00010701,2]
[352425228,1739095854113,-150.0,0.00010707,2]
[352425229,1739095854122,-626.67699444,0.00010732,2]
[352425230,1739095854131,-150.0,0.00010737,2]
[352425231,1739095854141,-150.0,0.00010751,2]
[352425232,1739095854150,-150.0,0.00010754,2]
[352425233,1739095854159,-150.0,0.00010758,2]
[352425234,1739095854168,-150.0,0.00010766,2]
[352425235,1739095854179,-500.0,0.0001077,2]
[352425236,1739095854189,-1152.27,0.00010771,2]
[352425237,1739095854198,-724.17,0.00010771,2]
[352425238,1739095854208,-1132.72,0.00010771,2]
[352425239,1739095854218,-1357.8,0.00010771,2]
[352425240,1739095854227,-500.0,0.00010771,2]
[352425241,1739095854237,-1150.02,0.00010771,2]
[352425242,1739095854247,-880.85,0.00010771,2]
[352425243,1739095854257,-1015.0,0.00010771,2]
[352425244,1739095854267,-500.0,0.00010771,2]
[352425245,1739095854276,-1257.71,0.00010771,2]
[352425246,1739095854286,-1341.32,0.00010771,2]
[352425247,1739095854295,-698.83,0.00010771,2]
[352425248,1739095854305,-1461.08,0.00010771,2]
[352425249,1739095854315,-1576.02,0.00010771,2]
[352425250,1739095854326,-1475.76,0.00010771,2]
[352425251,1739095854335,-1506.32,0.00010771,2]
[352425252,1739095854347,-1494.26,0.00010771,2]
[352425253,1739095854357,-500.0,0.00010771,2]
[352425254,1739095854368,-1208.06,0.00010771,2]
[352425255,1739095854377,-1283.21,0.00010771,2]
[352425256,1739095854387,-500.0,0.00010771,2]
[352425257,1739095854398,-500.0,0.00010771,2]
[352425258,1739095854408,-668.93,0.00010771,2]
[352425259,1739095854417,-532.29,0.00010771,2]
[352425260,1739095854427,-500.0,0.00010771,2]
[352425261,1739095854436,-500.0,0.00010771,2]
[352425262,1739095854446,-631.57,0.00010771,2]
[352425263,1739095854457,-500.0,0.00010771,2]
[352425264,1739095854466,-500.0,0.00010771,2]
[352425265,1739095854476,-1328.43,0.00010771,2]
[352425266,1739095854485,-500.0,0.00010772,2]
[352425267,1739095854495,-500.0,0.00010772,2]
[352425268,1739095854504,-500.0,0.00010772,2]
[352425269,1739095854513,-500.0,0.00010772,2]
[352425270,1739095854522,-500.0,0.00010772,2]
[352425271,1739095854532,-500.0,0.00010772,2]
[352425272,1739095854541,-500.0,0.00010772,2]
[352425273,1739095854550,-500.0,0.00010772,2]
[352425274,1739095854559,-500.0,0.00010772,2]
[352425275,1739095854569,-500.0,0.00010772,2]
[352425276,1739095854578,-500.0,0.00010772,2]
[352425277,1739095854588,-500.0,0.00010772,2]
[352425278,1739095854597,-500.0,0.00010772,2]
[352425279,1739095854606,-500.0,0.00010772,2]
[352425280,1739095854615,-500.0,0.00010772,2]
[352425281,1739095854625,-599.66,0.00010772,2]
[352425282,1739095854635,-533.15,0.00010772,2]
[352425283,1739095854644,-500.0,0.00010772,2]
[352425284,1739095854654,-500.0,0.00010772,2]
[352425285,1739095854664,-500.0,0.00010772,2]
[352425286,1739095854674,-714.67,0.00010772,2]
[352425287,1739095854684,-500.0,0.00010772,2]
[352425288,1739095854694,-510.82,0.00010772,2]
[352425289,1739095854703,-500.0,0.00010772,2]
[352425290,1739095854712,-500.0,0.00010772,2]
[352425291,1739095854722,-500.0,0.00010772,2]
[352425292,1739095854731,-575.28,0.00010772,2]
[352425293,1739095854740,-500.0,0.00010772,2]
[352425294,1739095854750,-500.0,0.00010772,2]
[352425295,1739095854759,-500.0,0.00010772,2]
[352425296,1739095854768,-594.56,0.00010772,2]
[352425297,1739095854778,-1213.56,0.00010772,2]
[352425298,1739095854787,-500.0,0.00010772,2]
[352425299,1739095854796,-588.03,0.00010772,2]
[352425300,1739095854805,-733.97644,0.00010772,2]
[352425301,1739095854815,-529.87,0.00010772,2]
[352425302,1739095854825,-957.726417,0.00010772,2]
[352425303,1739095854835,-781.27,0.00010772,2]
[352425304,1739095854844,-970.52,0.00010772,2]
[352425305,1739095854853,-537.11,0.00010772,2]
[352425306,1739095854862,-500.0,0.00010772,2]
[352425307,1739095854871,-2972.23,0.00010772,2]
[352425308,1739095854881,-666.32,0.00010772,2]
[352425309,1739095854890,-1280.02,0.00010772,2]
[352425310,1739095854899,-1201.1,0.00010772,2]
[352425311,1739095854909,-500.0,0.00010772,2]
[352425312,1739095854919,-1268.87,0.00010772,2]
[352425313,1739095854928,-632.14,0.00010772,2]
[352425314,1739095854939,-944.53,0.00010772,2]
[352425315,1739095854955,-702.27,0.00010772,2]
[352425316,1739095854964,-1188.01,0.00010772,2]
[352425317,1739095854974,-500.0,0.00010772,2]
[352425318,1739095854985,-2680.97,0.00010772,2]
[352425319,1739095854996,-801.63,0.00010772,2]
[352425320,1739095855005,-500.0,0.00010772,2]
[352425321,1739095855015,-452.54,0.00010772,2]
[352425322,1739095855025,-1475.77,0.00010772,2]
[352425323,1739095855035,-500.0,0.00010772,2]
[352425324,1739095855045,-679.18,0.00010772,2]
[352425325,1739095855054,-500.0,0.00010772,2]
[352425326,1739095855063,-500.0,0.00010772,2]
[352425327,1739095855072,-679.7,0.00010772,2]
[352425328,1739095855081,-500.0,0.00010772,2]
[352425329,1739095855091,-500.0,0.00010772,2]
[352425330,1739095855100,-770.02,0.00010772,2]
[352425331,1739095855109,-500.0,0.00010772,2]
[352425332,1739095855118,-500.0,0.00010772,2]
[352425333,1739095855127,-500.0,0.00010772,2]
[352425334,1739095855136,-267.4222605,0.00010773,2]
[352425335,1739095855146,-500.0,0.00010773,2]
[352425336,1739095855156,-500.0,0.00010773,2]
[352425337,1739095855166,-500.0,0.00010773,2]
[352425338,1739095855175,-500.0,0.00010773,2]
[352425339,1739095855185,-500.0,0.00010773,2]
[352425340,1739095855195,-267.35376151,0.00010773,2]
[352425341,1739095855204,-503.4832798,0.00010773,2]
[352425342,1739095855214,-500.0,0.00010773,2]
[352425343,1739095855223,-500.0,0.00010773,2]
[352425344,1739095855233,-500.0,0.00010773,2]
[352425345,1739095855242,-500.0,0.00010773,2]
[352425346,1739095855252,-500.0,0.00010773,2]
[352425347,1739095855261,-500.0,0.00010773,2]
[352425348,1739095855271,-500.0,0.00010773,2]
[352425349,1739095855281,-500.0,0.00010773,2]
[352425350,1739095855291,-500.0,0.00010773,2]
[352425351,1739095855300,-500.0,0.00010773,2]
[352425352,1739095855311,-500.0,0.00010773,2]
[352425353,1739095855320,-500.0,0.00010773,2]
[352425354,1739095855330,-500.0,0.00010773,2]
[352425355,1739095855445,-1239.95,0.00010773,2]
[352425356,1739095855455,-500.0,0.00010773,2]
[352425357,1739095855464,-500.0,0.00010773,2]
[352425358,1739095855474,-500.0,0.00010773,2]
[352425359,1739095855483,-500.0,0.00010773,2]
[352425360,1739095855492,-555.71,0.00010773,2]
[352425361,1739095855501,-557.2166848,0.00010773,2]
[352425362,1739095855511,-500.0,0.00010773,2]
[352425363,1739095855521,-500.0,0.00010773,2]
[352425364,1739095855530,-500.0,0.00010773,2]
[352425365,1739095855540,-500.0,0.00010773,2]
[352425366,1739095855549,-500.0,0.00010773,2]
[352425367,1739095855558,-500.0,0.00010773,2]
[352425368,1739095855567,-500.0,0.00010773,2]
[352425369,1739095855576,-500.0,0.00010773,2]
[352425370,1739095855586,-500.0,0.00010773,2]
[352425371,1739095855595,-500.0,0.00010773,2]
[352425372,1739095855605,-500.0,0.00010773,2]
[352425373,1739095855614,-500.0,0.00010773,2]
[352425374,1739095855624,-500.0,0.00010773,2]
[352425375,1739095855633,-502.52312805,0.00010773,2]
[352425376,1739095855644,-500.0,0.00010773,2]
[352425377,1739095855653,-587.11,0.00010773,2]
[352425378,1739095855663,-460.63355939,0.00010773,2]
[352425379,1739095855672,-500.0,0.00010773,2]
[352425380,1739095855681,-500.0,0.00010773,2]
[352425381,1739095855690,-500.0,0.00010773,2]
[352425382,1739095855699,-500.0,0.00010773,2]
[352425383,1739095855708,-500.0,0.00010773,2]
[352425384,1739095855717,-500.0,0.00010773,2]
[352425385,1739095855726,-500.0,0.00010773,2]
[352425386,1739095855735,-546.55,0.00010773,2]
[352425387,1739095855744,-500.0,0.00010773,2]
[352425388,1739095855754,-500.0,0.00010773,2]
[352425389,1739095855763,-500.0,0.00010773,2]
[352425390,1739095855772,-500.0,0.00010773,2]
[352425391,1739095855782,-500.0,0.00010773,2]
[352425392,1739095855791,-500.0,0.00010773,2]
[352425393,1739095855800,-550.19,0.00010773,2]
[352425394,1739095855811,-612.35,0.00010773,2]
[352425395,1739095855820,-830.04,0.00010773,2]
[352425396,1739095855829,-1383.45,0.00010773,2]